bitfinex-derivatives/quotes_ETHF0:USTF0_20251003
["timestamp","ask_amount","ask_price","bid_price","bid_amount"]
[1759526552140,1.2105279,4531.6,4531.5,0.898]
[1759526552344,1.3089279,4531.6,4531.5,0.4624]
[1759526552542,1.2105279,4531.6,4531.5,0.6691]
[1759526552741,1.2105279,4531.6,4531.5,0.8797]
[1759526585866,1.0530279,4531.6,4531.5,0.8797]
[1759526586066,0.8960279,4531.6,4531.5,0.8797]
[1759526587179,0.00266532,4531.9,4531.5,0.8797]
[1759526587373,0.39693,4531.7,4531.6,0.7313]
[1759526589974,0.39691,4531.8,4531.6,0.4158]
[1759526590167,0.39691,4531.8,4531.7,0.7313]
[1759526590672,0.39956532,4531.9,4531.8,0.3155]
[1759526590870,0.39956532,4531.9,4531.8,0.7313]
[1759526592574,0.55696532,4531.9,4531.8,0.7313]
[1759526595676,0.71436532,4531.9,4531.8,0.5284]
[1759526595877,0.71436532,4531.9,4531.8,0.7313]
[1759526598779,0.81226532,4531.9,4531.8,0.3155]
[1759526598975,0.4204,4530.7,4530.6,1.79907386]
[1759526599278,1.13801,4530.7,4530.6,0.21523415]
[1759526599778,1.13801,4530.7,4530.0,0.3433]
[1759526599779,0.39706,4530.1,4530.0,0.3433]
[1759526599975,0.2061,4529.9,4529.8,0.4158]
[1759526600169,0.39707,4530.0,4529.8,0.4158]
[1759526600771,0.39707,4530.0,4529.8,0.41855395]
[1759526601080,0.39707,4530.0,4529.9,0.7313]
[1759526601081,0.60317,4530.0,4529.9,0.7313]
[1759526605379,0.60317,4530.0,4529.8,0.00275395]
[1759526605380,1.24327,4530.0,4529.8,0.00275395]
[1759526605579,1.24327,4530.0,4529.8,0.31825395]
[1759526605983,1.24327,4530.0,4529.8,0.00275395]
[1759526606886,1.24327,4530.0,4529.8,0.31825395]
[1759526607087,1.24327,4530.0,4529.8,0.00275395]
[1759526607283,1.42268,4529.1,4528.6,0.3202]
[1759526607586,0.4298,4528.6,4528.5,4.0959]
[1759526607786,2.09038,4530.5,4529.1,0.3202]
[1759526607977,0.60573,4529.3,4529.2,0.3202]
[1759526608181,0.60773893,4529.3,4529.2,0.7671393]
[1759526608388,1.15183893,4529.3,4529.2,0.7671393]
[1759526609488,1.15183893,4529.3,4529.2,0.5428393]
[1759526619097,1.15183893,4529.3,4529.2,0.7518393]
[1759526619393,0.82893893,4529.3,4529.2,0.7518393]
[1759526622996,1.15183893,4529.3,4529.2,0.7518393]
[1759526625497,1.15183893,4529.3,4529.2,0.0016393]
[1759526625694,1.14409,4528.6,4528.5,3.2078]
[1759526626690,1.14409,4528.6,4528.5,3.20938114]
[1759526626895,4.03078813,4528.6,4528.5,3.20938114]
[1759526631397,4.53956836,4528.6,4528.5,3.20938114]
[1759526635696,4.76056836,4528.6,4528.5,3.20938114]
[1759526641217,4.76056836,4528.6,4528.5,3.53128114]
[1759526642011,4.76056836,4528.6,4528.5,3.73508114]
[1759526645707,3.79266836,4528.6,4528.5,4.07248114]
[1759526645911,4.01366836,4528.6,4528.5,4.07248114]
[1759526648217,0.3159,4528.4,4528.0,0.3374]
[1759526648413,1.65020023,4528.3,4528.2,0.4206]
[1759526648616,4.00957766,4528.3,4528.2,0.4206]
[1759526648915,1.12700023,4528.3,4528.2,0.4206]
[1759526649317,0.61822,4528.3,4528.2,0.42302802]
[1759526649508,1.13075093,4528.3,4528.2,0.42302802]
[1759526649708,1.44665093,4528.3,4528.2,0.42302802]
[1759526649908,1.65395093,4528.3,4528.2,0.42302802]
[1759526650205,1.65395093,4528.3,4528.2,0.75572802]
[1759526650511,1.13075093,4528.3,4528.2,0.75572802]
[1759526650915,0.39722,4528.3,4528.2,0.75572802]
[1759526653312,0.91041875,4528.3,4528.2,0.75572802]
[1759526654417,0.39722,4528.3,4528.2,0.75572802]
[1759526654713,0.3159,4529.0,4528.5,0.1218]
[1759526654915,0.5369,4529.0,4528.9,0.7533]
[1759526655119,1.25770644,4529.0,4528.9,0.7533]
[1759526655418,1.13166644,4529.0,4528.9,0.7533]
[1759526655712,0.91066644,4529.0,4528.9,0.7533]
[1759526658718,0.39716,4529.0,4528.9,0.7533]
[1759526661718,0.71306,4529.0,4528.9,0.7533]
[1759526661918,0.92036,4529.0,4528.9,0.7533]
[1759526666813,0.92036,4529.0,4528.2,0.75572802]
[1759526666814,1.14502,4528.3,4528.2,0.75572802]
[1759526667016,0.3159,4528.6,4528.5,0.1218]
[1759526667218,0.39719,4528.6,4528.5,0.5488]
[1759526667621,0.61259,4528.6,4528.5,0.5488]
[1759526667923,0.94659,4528.6,4528.5,0.869]
[1759526668223,0.5494,4528.6,4528.5,0.869]
[1759526668415,0.94659,4528.6,4528.5,0.869]
[1759526672722,0.5494,4528.6,4528.5,0.869]
[1759526673619,0.00200893,4529.3,4528.6,0.3237]
[1759526673923,0.3182,4528.9,4528.7,0.3237]
[1759526674122,0.2238,4528.8,4528.7,0.3237]
[1759526674420,0.2238,4528.8,4528.7,0.752]
[1759526675622,0.542,4528.8,4528.7,0.752]
[1759526676324,0.93917,4528.8,4528.7,0.752]
[1759526676622,1.16427,4528.8,4528.7,0.752]
[1759526683624,0.99484893,4529.3,4528.7,0.752]
[1759526683625,0.00200893,4529.3,4529.0,0.1255]
[1759526683831,1.05474737,4529.2,4529.1,0.752]
[1759526684130,1.67698737,4529.2,4529.1,0.752]
[1759526686529,1.27984737,4529.2,4529.1,0.752]
[1759526689334,1.67698737,4529.2,4529.1,0.752]
[1759526689636,1.27984737,4529.2,4529.1,0.752]
[1759526690736,1.67698737,4529.2,4529.1,0.752]
[1759526691538,1.27984737,4529.2,4529.1,0.752]
[1759526692033,1.67698737,4529.2,4529.1,0.752]
[1759526693034,1.27984737,4529.2,4529.1,0.752]
[1759526693229,1.67698737,4529.2,4529.1,0.752]
[1759526693430,1.27984737,4529.2,4529.1,0.752]
[1759526693626,1.67698737,4529.2,4529.1,0.752]
[1759526693831,0.84606,4528.9,4528.8,0.5464]
[1759526694038,0.2251,4528.4,4528.3,0.752]
[1759526694235,0.7671,4528.4,4528.3,0.752]
[1759526697637,0.7671,4528.4,4528.2,1.58626773]
[1759526697837,1.16432,4528.3,4528.2,0.00242802]
[1759526698341,1.16432,4528.3,4528.2,0.22512802]
[1759526698640,1.16432,4528.3,4528.2,0.54882802]
[1759526700240,0.7671,4528.3,4528.2,0.54882802]
[1759526701337,1.16432,4528.3,4528.2,0.22512802]
[1759526701542,1.16432,4528.3,4528.2,0.00242802]
[1759526702336,0.7671,4528.3,4528.2,0.00242802]
[1759526702638,0.7671,4528.3,4528.2,0.22512802]
[1759526703040,0.7671,4528.3,4528.2,0.54812802]
[1759526704942,0.3174,4528.9,4528.2,0.44172802]
[1759526705138,0.5406,4528.9,4528.8,0.4362]
[1759526705338,0.5406,4528.9,4528.8,0.7592]
[1759526705644,0.7529,4528.9,4528.8,0.7592]
[1759526710441,1.15006,4528.9,4528.8,0.5426]
[1759526710645,0.8766,4528.5,4528.4,0.5426]
[1759526711944,0.8766,4528.5,4528.4,0.221]
[1759526712343,0.8766,4528.5,4528.4,0.7636]
[1759526712743,0.8766,4528.5,4528.4,0.221]
[1759526713146,1.2738,4528.5,4528.4,0.221]
[1759526717849,0.8766,4528.5,4528.4,0.221]
[1759526718050,1.2738,4528.5,4528.4,0.221]
[1759526720553,1.2738,4528.5,4528.2,0.00242802]
[1759526720850,1.2738,4528.5,4528.2,0.32542802]
[1759526721053,0.39721,4528.4,4528.2,0.32542802]
[1759526721247,0.7529,4528.3,4528.2,0.54502802]
[1759526722149,1.15012,4528.3,4528.2,0.54502802]
[1759526723251,1.15012,4528.3,4528.2,0.22202802]
[1759526723453,1.15012,4528.3,4528.2,0.54502802]
[1759526728259,0.7529,4528.3,4528.2,0.76162802]
[1759526728452,0.5452,4528.9,4528.3,0.3281]
[1759526728656,0.7498,4528.9,4528.8,0.5528]
[1759526729055,1.14696,4528.9,4528.8,0.5528]
[1759526730262,0.7498,4528.9,4528.8,0.5528]
[1759526730461,0.7498,4528.9,4528.8,0.7612]
[1759526733067,0.3191,4529.2,4528.9,0.3162]
[1759526733262,0.5412,4529.2,4529.1,0.4405]
[1759526733465,0.5412,4529.2,4529.1,0.7567]
[1759526734161,0.7618,4529.2,4529.1,0.7567]
[1759526734762,1.15894,4529.2,4529.1,0.7567]
[1759526735061,1.15898,4528.8,4528.7,0.5363]
[1759526735269,1.15898,4528.8,4528.7,0.2201]
[1759526738274,0.7618,4528.8,4528.7,0.2201]
[1759526742879,1.15897,4528.8,4528.7,0.2201]
[1759526743172,0.7618,4528.8,4528.7,0.2201]
[1759526743577,0.7618,4528.8,4528.7,0.7567]
[1759526744866,0.32110893,4529.3,4528.8,0.3162]
[1759526745068,0.76380893,4529.3,4529.2,0.7567]
[1759526745468,1.16093893,4529.3,4529.2,0.7567]
[1759526754175,0.76380893,4529.3,4529.2,0.7567]
[1759526757181,0.00200893,4529.3,4529.2,0.7567]
[1759526758785,0.00200893,4529.3,4529.2,0.93607509]
[1759526760476,0.00200893,4529.3,4529.2,0.7567]
[1759526761083,0.00200893,4529.3,4529.2,0.93777432]
[1759526762383,0.00200893,4529.3,4529.2,0.7567]
[1759526763781,0.00200893,4529.3,4529.2,0.93461542]
[1759526764981,0.00200893,4529.3,4529.2,1.33175542]
[1759526765185,0.00200893,4529.3,4529.2,0.93461542]
[1759526766082,0.00200893,4529.3,4529.2,1.15561542]
[1759526766385,0.00200893,4529.3,4529.2,0.9777]
[1759526768586,0.00200893,4529.3,4529.2,1.15097815]
[1759526771076,0.00200893,4529.3,4529.2,1.54811815]
[1759526771280,0.5424,4530.3,4530.2,0.2047]
[1759526771487,1.66010295,4530.3,4530.2,0.7239]
[1759526772382,1.66285805,4530.3,4530.2,0.7239]
[1759526776290,1.1516951,4530.3,4530.2,0.7239]
[1759526776785,0.7546551,4530.3,4530.2,0.7239]
[1759526789205,1.1516951,4530.3,4530.2,0.7239]
[1759526789504,1.66274952,4530.3,4530.2,0.2047]
[1759526789706,1.66274952,4530.3,4530.2,0.541]
[1759526791606,1.1516951,4530.3,4530.2,0.541]
[1759526792103,0.7546551,4530.3,4530.2,0.541]
[1759526792305,1.26577518,4530.3,4530.2,0.541]
[1759526792503,1.66281518,4530.3,4530.2,0.2047]
[1759526792704,1.66281518,4530.3,4530.2,0.511]
[1759526792907,0.767,4529.9,4529.8,0.2192]
[1759526793102,0.96101,4529.5,4529.4,0.2192]
[1759526793302,0.767,4528.9,4528.8,3.2078]
[1759526793501,0.767,4528.9,4528.8,3.9366]
[1759526795909,0.767,4528.9,4528.8,4.1576]
[1759526797410,0.5639,4528.5,4528.4,0.3063]
[1759526797599,0.8902,4528.5,4528.4,0.7465]
[1759526798005,0.8902,4528.5,4528.4,0.9498]
[1759526801212,0.767,4528.5,4528.4,0.9498]
[1759526801419,0.52036,4529.0,4528.8,0.4225]
[1759526801420,0.767,4528.9,4528.8,0.4225]
[1759526801718,0.767,4528.9,4528.8,0.7288]
[1759526803918,1.16416,4528.9,4528.8,0.7288]
[1759526804521,1.16416,4528.9,4528.8,0.2192]
[1759526805211,0.1232,4528.5,4528.3,3.2078]
[1759526805416,1.16421,4528.4,4528.3,3.2078]
[1759526807921,1.16421,4528.4,4528.3,3.427]
[1759526808321,1.16421,4528.4,4528.3,3.7333]
[1759526809623,1.16421,4528.4,4528.3,3.9366]
[1759526810020,1.16421,4528.4,4528.3,3.7333]
[1759526810219,1.16422,4528.3,4528.2,0.00242802]
[1759526811122,0.767,4528.3,4528.2,0.73122802]
[1759526811317,1.16422,4528.3,4528.2,0.73122802]
[1759526812921,0.5419,4528.3,4528.2,0.73122802]
[1759526813129,0.5419,4528.7,4528.6,0.7288]
[1759526813613,0.93908,4528.7,4528.6,0.7288]
[1759526813815,1.16418,4528.7,4528.6,0.7288]
[1759526818529,0.767,4528.7,4528.6,0.7288]
[1759526818824,0.39715,4529.1,4528.6,0.7288]
[1759526819021,0.5419,4529.0,4528.9,0.4225]
[1759526819226,0.5419,4529.0,4528.9,0.7288]
[1759526821029,0.767,4529.0,4528.9,0.7288]
[1759526821224,1.16416,4529.0,4528.9,0.7288]
[1759526821425,1.28736,4529.0,4528.9,0.7288]
[1759526822320,1.79889746,4529.0,4528.9,0.7288]
[1759526823031,1.28736,4529.0,4528.9,0.7288]
[1759526823429,0.7583,4528.7,4528.6,0.7512]
[1759526824132,1.15548,4528.7,4528.6,0.7512]
[1759526824726,0.5398,4528.7,4528.6,0.7512]
[1759526826232,0.3147,4529.0,4528.7,0.32]
[1759526826428,0.51255669,4528.9,4528.8,0.4312]
[1759526826633,1.05235669,4528.9,4528.8,0.7512]
[1759526827038,0.90971669,4528.9,4528.8,0.7512]
[1759526827334,1.66801669,4528.9,4528.8,0.7512]
[1759526829329,0.4436,4528.6,4528.5,0.2123]
[1759526829529,0.7583,4528.6,4528.5,0.5323]
[1759526830134,0.7583,4528.6,4528.5,0.7512]
[1759526833338,1.15549,4528.6,4528.5,0.5323]
[1759526833642,1.15549,4528.6,4528.5,0.2123]
[1759526835047,1.15549,4528.6,4528.5,0.5323]
[1759526838056,1.2788,4528.5,4528.4,0.221]
[1759526838550,1.2788,4528.5,4528.4,0.4333]
[1759526838745,1.2788,4528.5,4528.4,0.7533]
[1759526839053,0.8816,4528.5,4528.4,0.7533]
[1759526839246,1.2788,4528.5,4528.4,0.9722]
[1759526841251,1.2788,4528.5,4528.4,0.4333]
[1759526841457,1.2788,4528.5,4528.4,0.7533]
[1759526844350,0.8816,4528.5,4528.4,0.7533]
[1759526844659,1.2788,4528.5,4528.4,0.7533]
[1759526846763,1.2788,4528.5,4528.4,0.9722]
[1759526849662,0.8816,4528.5,4528.4,0.9722]
[1759526850064,1.2788,4528.5,4528.4,0.9722]
[1759526850364,0.8816,4528.5,4528.4,0.9722]
[1759526850566,1.2788,4528.5,4528.4,0.9722]
[1759526851565,0.8816,4528.5,4528.4,0.9722]
[1759526852159,1.2788,4528.5,4528.4,0.9722]
[1759526854468,1.2788,4528.5,4528.4,0.4333]
[1759526857065,0.433,4528.3,4528.2,0.00242802]
[1759526857270,1.14202,4528.3,4528.2,0.00242802]
[1759526857466,0.7448,4528.3,4528.2,0.55482802]
[1759526858863,0.5322,4528.3,4528.2,0.77142802]
[1759526860163,4.20064,4529.3,4528.2,3.64412802]
[1759526860164,0.3118,4528.6,4528.2,3.64412802]
[1759526860368,0.7448,4528.6,4528.5,0.4339]
[1759526860566,0.7448,4528.6,4528.5,0.769]
[1759526865572,1.14199,4528.6,4528.5,0.769]
[1759526866273,0.7448,4528.6,4528.5,0.769]
[1759526866771,1.14199,4528.6,4528.5,0.769]
[1759526866970,0.7448,4528.6,4528.5,0.769]
[1759526868177,1.14199,4528.6,4528.5,0.769]
[1759526869577,0.7448,4528.6,4528.5,0.769]
[1759526869773,0.3118,4528.9,4528.5,0.9033]
[1759526869978,0.2204,4528.6,4528.5,0.5682]
[1759526870180,0.5322,4528.6,4528.5,0.5682]
[1759526870378,0.5322,4528.6,4528.5,0.9033]
[1759526870580,0.5322,4528.9,4528.8,0.4339]
[1759526870781,1.04553811,4528.9,4528.8,0.769]
[1759526871781,0.51333811,4528.9,4528.8,0.769]
[1759526871982,0.2204,4529.2,4529.1,0.2173]
[1759526872175,1.04554566,4529.2,4529.1,0.769]
[1759526873280,0.5322,4529.2,4529.1,0.769]
[1759526874678,0.7448,4529.2,4529.1,0.769]
[1759526875778,0.5322,4529.2,4529.1,0.769]
[1759526878889,0.3118,4529.6,4529.2,0.3351]
[1759526879081,0.9293,4529.6,4529.5,0.769]
[1759526879277,1.65453083,4529.6,4529.5,0.769]
[1759526881789,0.39713,4529.4,4529.3,0.2173]
[1759526881990,0.39713,4529.4,4529.1,0.3351]
[1759526881991,0.433,4529.2,4529.1,0.5524]
[1759526882387,0.7443,4529.2,4529.1,0.5524]
[1759526882790,0.7443,4529.2,4529.1,0.7699]
[1759526887988,0.5317,4529.2,4529.1,0.7699]
[1759526888294,3.2078,4529.9,4529.1,0.7699]
[1759526888487,3.2078,4529.9,4529.0,0.3476]
[1759526888488,4.32938,4529.9,4529.8,0.5097]
[1759526888688,4.84008363,4529.9,4529.8,0.5097]
[1759526892988,4.84008363,4529.9,4529.8,0.2032]
[1759526893186,1.12159,4529.7,4529.6,0.5097]
[1759526893390,1.12159,4529.7,4529.6,0.2032]
[1759526896401,1.12159,4529.7,4529.6,0.5097]
[1759526899403,1.12159,4529.7,4529.6,0.2032]
[1759526900601,0.6001,4529.6,4529.5,0.221]
[1759526900809,1.1216,4529.6,4529.5,0.221]
[1759526901106,1.25311,4529.5,4529.4,0.5097]
[1759526906511,0.856,4529.5,4529.4,0.5097]
[1759526907814,0.7245,4529.5,4529.4,0.7272]
[1759526911410,0.8581,4529.5,4529.4,0.7272]
[1759526912512,1.25521,4529.5,4529.4,0.7272]
[1759526913217,0.8581,4529.5,4529.4,0.7272]
[1759526917021,0.7245,4529.5,4529.4,0.7272]
[1759526920728,0.5143,4529.5,4529.4,1.12432]
[1759526921327,0.5143,4529.5,4529.4,0.7272]
[1759526922927,0.5143,4529.5,4529.4,0.9482]
[1759526923127,0.7252,4529.5,4529.4,0.9482]
[1759526927231,0.0027551,4530.3,4529.9,0.7659]
[1759526927427,0.0027551,4530.3,4530.1,0.7659]
[1759526927428,1.04854475,4530.2,4530.1,0.7659]
[1759526927934,0.5388,4530.2,4530.1,0.7659]
[1759526928233,0.3267551,4530.3,4530.1,0.4308]
[1759526928433,0.5415551,4530.3,4530.2,0.7659]
[1759526929626,0.7524551,4530.3,4530.2,0.7659]
[1759526929831,0.7524551,4530.3,4530.2,0.2234]
[1759526930026,0.7524551,4530.3,4529.7,4.79163971]
[1759526930027,0.7497,4529.9,4529.8,0.18042357]
[1759526930225,1.14678,4529.9,4529.8,0.18042357]
[1759526930728,1.14678,4529.9,4529.7,3.4288]
[1759526930936,0.7497,4529.8,4529.7,3.4288]
[1759526931135,0.7497,4529.8,4529.7,3.6522]
[1759526931930,0.7497,4529.8,4529.7,3.9873]
[1759526932736,0.7497,4529.8,4529.7,4.1947]
[1759526934239,1.14679,4529.8,4529.7,4.1947]
[1759526940146,0.7497,4529.8,4529.7,4.1947]
[1759526940440,0.5388,4530.2,4530.1,0.7659]
[1759526940648,0.93585,4530.2,4530.1,0.7659]
[1759526941043,1.14675,4530.2,4530.1,0.7659]
[1759526943551,0.7497,4530.2,4530.1,0.7659]
[1759526943750,1.14675,4530.2,4530.1,0.7659]
[1759526945751,0.7497,4530.2,4530.1,0.7659]
[1759526945944,1.14675,4530.2,4530.1,0.7659]
[1759526952549,0.7497,4530.2,4530.1,0.7659]
[1759526952749,1.14675,4530.2,4530.1,0.7659]
[1759526954847,0.7497,4530.2,4530.1,0.7659]
[1759526956556,1.14675,4530.2,4530.1,0.7659]
[1759526956858,0.7497,4530.2,4530.1,0.7659]
[1759526957355,1.65117062,4530.2,4530.1,0.7659]
[1759526958060,1.25412062,4530.2,4530.1,0.7659]
[1759526958261,1.65117062,4530.2,4530.1,0.7659]
[1759526959362,1.25412062,4530.2,4530.1,0.7659]
[1759526959763,1.65117062,4530.2,4530.1,0.7659]
[1759526968270,1.25412062,4530.2,4530.1,0.7659]
[1759526968571,0.0027551,4530.3,4530.1,3.6386]
[1759526968868,0.0027551,4530.3,4530.2,0.7518]
[1759526971070,0.3128551,4530.3,4530.2,0.7518]
[1759526971570,0.5237551,4530.3,4530.2,0.7518]
[1759526979378,0.5237551,4530.3,4530.2,0.9728]
[1759526982887,0.7482551,4530.3,4530.2,0.9728]
[1759526983884,1.13695,4530.2,4530.1,3.2078]
[1759526984087,0.4331,4529.7,4529.5,3.531]
[1759526984277,0.7399,4529.7,4529.6,0.221]
[1759526989587,0.7399,4529.7,4529.6,0.427]
[1759526991080,0.7399,4529.7,4529.5,3.2078]
[1759526991387,0.7399,4529.7,4529.6,0.7502]
[1759526992086,0.7399,4529.7,4529.6,0.5292]
[1759526992286,0.7399,4529.7,4529.6,0.7502]
[1759526993086,0.7399,4529.7,4529.6,0.5292]
[1759526993281,0.7399,4529.7,4529.6,0.7502]
[1759526993988,0.7399,4529.7,4529.6,0.9599]
[1759526994186,0.7399,4529.7,4529.6,0.7389]
[1759526994389,0.7399,4529.7,4529.6,0.9599]
[1759526995187,0.7399,4529.7,4529.6,0.7389]
[1759526995489,0.7399,4529.7,4529.6,0.9599]
[1759526996188,0.7399,4529.7,4529.6,0.7389]
[1759526996685,0.7399,4529.7,4529.6,0.9599]
[1759527001287,0.3068,4529.2,4529.1,0.7502]
[1759527001495,0.7399,4529.2,4529.1,0.7502]
[1759527002289,0.7399,4529.2,4529.1,0.427]
[1759527002987,0.39715,4529.1,4529.0,3.2078]
[1759527003185,0.39715,4529.1,4528.5,5.32173971]
[1759527003186,0.4334,4528.6,4528.5,5.32173971]
[1759527003389,0.7573,4528.6,4528.5,3.9589]
[1759527004090,0.7573,4528.6,4528.5,4.1788]
[1759527005184,0.3239,4528.9,4528.5,3.9835]
[1759527005385,0.544,4529.4,4529.3,0.2034]
[1759527005584,0.7573,4529.4,4529.3,0.5301]
[1759527005983,1.15442,4529.4,4529.3,0.5301]
[1759527006183,0.7573,4529.4,4529.3,0.5301]
[1759527007790,0.7573,4529.4,4529.3,0.75]
[1759527008593,0.3239,4529.8,4529.4,0.3267]
[1759527008894,0.544,4529.8,4529.7,0.75]
[1759527009292,0.7573,4529.8,4529.7,0.75]
[1759527011095,0.7573,4529.1,4529.0,0.5301]
[1759527011296,0.7573,4529.1,4529.0,0.7511]
[1759527011496,0.7573,4529.1,4529.0,0.971]
[1759527016295,1.15445,4529.1,4529.0,0.4244]
[1759527016602,1.15445,4529.1,4529.0,0.221]
[1759527016799,0.7573,4529.1,4529.0,0.221]
[1759527017601,0.7573,4529.1,4529.0,0.4244]
[1759527017803,0.7573,4529.1,4529.0,0.7511]
[1759527017991,0.7573,4529.1,4529.0,0.4244]
[1759527020103,0.7573,4529.1,4529.0,0.221]
[1759527020303,0.4334,4528.9,4528.8,0.5301]
[1759527020504,0.7573,4528.9,4528.8,0.5301]
[1759527021498,0.7573,4528.9,4528.8,0.75]
[1759527022195,0.544,4528.9,4528.8,0.75]
[1759527022599,0.39711,4529.5,4528.8,0.75]
[1759527022799,0.3239,4530.2,4529.7,0.4233]
[1759527023000,0.7600551,4530.3,4530.2,0.75]
[1759527023199,1.26115721,4530.3,4530.2,0.75]
[1759527023397,0.7600551,4530.3,4530.2,0.75]
[1759527026402,0.0027551,4530.3,4530.2,0.75]
[1759527032112,0.5341551,4530.3,4530.2,0.75]
[1759527032618,0.0027551,4530.3,4530.2,0.75]
[1759527033514,3.2078,4532.5,4530.2,5.9]
[1759527033714,3.2078,4533.5,4532.8,0.7453]
[1759527033913,3.4121,4533.5,4533.4,0.4405]
[1759527034111,3.4121,4533.5,4533.4,0.7453]
[1759527034518,3.41369063,4533.5,4533.4,0.74740615]
[1759527035906,3.20939063,4533.5,4533.4,0.74740615]
[1759527036116,0.00159063,4533.5,4533.4,0.74740615]
[1759527037924,0.01159063,4533.5,4533.4,0.74740615]
[1759527040913,0.01159063,4533.5,4533.4,3.95520615]
[1759527042020,0.01832274,4533.9,4533.8,0.7453]
[1759527042217,0.01832274,4533.9,4533.8,0.9653]
[1759527043122,0.02117609,4533.9,4533.8,0.9653]
[1759527043621,0.3271,4535.1,4535.0,0.8699]
[1759527043622,0.2043,4535.1,4535.0,0.8699]
[1759527043812,3.2078,4535.2,4535.1,0.3048]
[1759527044017,3.4121,4535.2,4535.1,0.7453]
[1759527044519,3.20973769,4535.2,4535.1,0.7453]
[1759527045722,3.41403769,4535.2,4535.1,0.7453]
[1759527046220,3.81064769,4535.2,4535.1,0.7453]
[1759527046923,3.95783769,4535.2,4534.4,3.2078]
[1759527047126,0.7481,4534.5,4534.4,3.5126]
[1759527047329,0.7481,4534.5,4534.4,3.7307]
[1759527047727,0.7481,4534.5,4534.4,3.9531]
[1759527050725,0.7481,4534.5,4534.4,4.1731]
[1759527050930,0.7481,4534.5,4534.4,3.9531]
[1759527051127,0.7481,4534.5,4534.4,4.1731]
[1759527054129,0.8721,4534.5,4533.9,3.2078]
[1759527054332,0.8721,4534.5,4533.9,3.7307]
[1759527054333,1.14482,4534.0,4533.9,3.7307]
[1759527054534,1.14482,4534.0,4533.9,0.5229]
[1759527055039,0.39675,4533.6,4533.5,0.3048]
[1759527055240,0.7481,4533.5,4533.4,0.22020615]
[1759527055734,0.7481,4533.5,4533.4,0.52500615]
[1759527058838,0.60105,4533.6,4533.5,0.8699]
[1759527059033,1.14485,4533.6,4533.5,0.8699]
[1759527062130,1.14485,4533.6,4533.5,0.5229]
[1759527063038,1.14485,4533.6,4533.5,0.8667]
[1759527063543,1.14485,4533.6,4533.5,0.7429]
[1759527063842,1.14485,4533.6,4533.5,0.3048]
[1759527065240,0.124,4533.5,4533.4,0.00210615]
[1759527065443,1.16851,4532.9,4532.8,3.2078]
[1759527066440,1.16851,4532.9,4532.8,3.20940268]
[1759527066638,1.16851,4532.9,4532.0,0.1238]
[1759527066639,8.76556999,4532.9,4532.0,0.1238]
[1759527066843,8.76556999,4532.9,4531.0,1.70763971]
[1759527066844,0.39692,4531.7,4531.6,0.308]
[1759527067135,3.6435785,4531.7,4531.0,0.1238]
[1759527067338,3.6435785,4531.7,4530.5,0.336]
[1759527067339,0.39702,4530.6,4530.5,0.336]
[1759527067540,0.61797,4531.1,4531.0,0.1238]
[1759527067745,1.10739457,4531.1,4531.0,0.33860332]
[1759527067946,1.10739457,4531.1,4531.0,0.12640332]
[1759527068146,0.88639457,4531.1,4531.0,0.12640332]
[1759527068342,0.61980908,4531.1,4531.0,0.12640332]
[1759527069349,0.61980908,4531.1,4531.0,0.43440332]
[1759527069548,0.61980908,4531.1,4531.0,0.64660332]
[1759527069747,0.61980908,4531.1,4531.0,0.86660332]
[1759527070742,0.61980908,4531.1,4531.0,0.43440332]
[1759527072851,0.61980908,4531.1,4531.0,0.64660332]
[1759527073654,0.39880908,4531.1,4531.0,0.64660332]
[1759527073846,0.61980908,4531.1,4531.0,0.64660332]
[1759527074650,0.39880908,4531.1,4531.0,0.64660332]
[1759527074955,0.61980908,4531.1,4531.0,0.64660332]
[1759527075655,0.61980908,4531.1,4531.0,0.86660332]
[1759527077756,0.39880908,4531.1,4531.0,0.86660332]
[1759527078157,0.61980908,4531.1,4531.0,0.86660332]
[1759527079456,0.39880908,4531.1,4531.0,0.86660332]
[1759527079656,0.61980908,4531.1,4531.0,0.86660332]
[1759527084154,0.39880908,4531.1,4531.0,0.86660332]
[1759527089662,0.00183908,4531.1,4531.0,0.86660332]
[1759527089970,0.39880908,4531.1,4531.0,0.86660332]
[1759527094773,0.39880908,4531.1,4531.0,0.64660332]
[1759527095073,0.39880908,4531.1,4531.0,0.43440332]
[1759527095480,0.39880908,4531.1,4531.0,0.64450332]
[1759527096380,0.88786032,4531.1,4531.0,0.64450332]
[1759527096782,0.88786032,4531.1,4531.0,0.85330332]
[1759527099487,0.88786032,4531.1,4531.0,0.43440332]
[1759527101889,4.09566032,4531.1,4531.0,0.43440332]
[1759527102978,4.31666032,4531.1,4531.0,0.43440332]
[1759527107794,4.31666032,4531.1,4531.0,0.64450332]
[1759527108393,4.31666032,4531.1,4531.0,0.43440332]
[1759527109594,4.31666032,4531.1,4531.0,0.64450332]
[1759527113488,4.09566032,4531.1,4531.0,0.64450332]
[1759527113701,4.31666032,4531.1,4531.0,0.64450332]
[1759527117998,4.31666032,4531.1,4531.0,0.85330332]
[1759527121995,4.09566032,4531.1,4531.0,0.85330332]
[1759527122200,4.31666032,4531.1,4531.0,0.85330332]
[1759527123303,4.09566032,4531.1,4531.0,0.85330332]
[1759527123492,4.31666032,4531.1,4531.0,0.85330332]
[1759527123696,4.31666032,4531.1,4531.0,0.43440332]
[1759527126006,4.31747967,4531.1,4531.0,0.64180332]
[1759527129102,4.31747967,4531.1,4531.0,0.43440332]
[1759527130904,1.15346,4530.1,4530.0,0.5423]
[1759527131108,1.37446,4530.1,4530.0,0.5423]
[1759527131911,1.37446,4530.1,4530.0,0.54512802]
[1759527132904,1.37446,4530.1,4530.0,0.87862802]
[1759527136609,1.37446,4530.1,4530.0,0.33632802]
[1759527136610,1.8626591,4530.1,4530.0,0.33632802]